fUSD/lending_fUSD_20250506
["ID","MTS","AMOUNT","RATE_DAILY","PERIOD"]
[360050028,1746520242832,-707.675,0.00019691,2]
[360050069,1746520243101,-8406.62174892,0.00019691,2]
[360050070,1746520243112,-9443.84517383,0.00019691,2]
[360050071,1746520243125,-55604.21527114,0.00019691,2]
[360050103,1746520245753,-522.22500988,0.00019691,2]
[360050104,1746520245863,-3814.4608,0.00019691,2]
[360050105,1746520245874,-268.987887,0.00019691,2]
[360050106,1746520245922,-3855.36096479,0.00019691,2]
[360050107,1746520245934,-4818.71557406,0.00019691,2]
[360050108,1746520245978,-421.41370726,0.00019691,2]
[360050109,1746520245987,-176.26355345,0.00019701,2]
[360050110,1746520246000,-1837.83243733,0.00019704,2]
[360050111,1746520246012,-998.61917773,0.00019721,2]
[360050112,1746520246032,-633.78322104,0.00019721,2]
[360050113,1746520246045,-1936.68284062,0.00019721,2]
[360050127,1746520254052,621.28,0.00018981,2]
[360050128,1746520286054,152.59,0.000298,31]
[360050129,1746520286113,152.59,0.000298,31]
[360050130,1746520286177,152.59,0.000298,31]
[360050131,1746520286234,152.59,0.000298,31]
[360050132,1746520286305,152.59,0.000298,31]
[360050133,1746520286360,152.59,0.000298,31]
[360050134,1746520286427,152.59,0.000298,31]
[360050149,1746520416777,682.23,0.00018936,2]
[360050150,1746520446576,334.85,0.000195,2]
[360050151,1746520477674,1000.0,0.00018936,2]
[360050161,1746520570168,-292.93001241,0.000196,2]
[360050162,1746520570194,-200.0,0.000196,2]
[360050163,1746520570214,-335.8234,0.00019698,2]
[360050164,1746520570398,-250.0,0.00019712,2]
[360050165,1746520570420,-200.0,0.00019712,2]
[360050166,1746520570441,-732300.66018669,0.00019721,2]
[360050167,1746520570462,-502.0,0.00019726,2]
[360050168,1746520570483,-31011.2664009,0.00019728,2]
[360050180,1746520742350,250.0,0.00017,2]
[360050181,1746520743462,300.0,0.00019,2]
[360050187,1746520780884,310.38,0.00018928,2]
[360050188,1746520820728,180.9538229,0.0003,30]
[360050189,1746520864553,162.69,0.00019494,2]
[360050190,1746520883065,601.62,0.00017003,2]
[360050191,1746520883269,601.62,0.00019267,2]
[360050192,1746520906061,4000.0,0.0001892,2]
[360050197,1746520988302,-524.54793722,0.00019509,2]
[360050198,1746521141614,327.0,0.000298,30]
[360050199,1746521223016,182.18,0.00018911,2]
[360050200,1746521239017,-676.54793722,0.00019522,2]
[360050201,1746521243737,-180.51759405,0.00019522,2]
[360050203,1746521298520,291.0,0.000195,2]
[360050210,1746521400986,-188.69,0.00019554,2]
[360050211,1746521404115,-200.0,0.00019554,2]
[360050212,1746521404138,-92.93001241,0.00019566,2]
[360050213,1746521406330,-157.06998759,0.00019566,2]
[360050214,1746521406354,-27.46889487,0.00019577,2]
[360050216,1746521414984,-290.49488793,0.00019575,2]
[360050218,1746521432020,-114.23504079,0.00019575,2]
[360050219,1746521432033,-172.53110513,0.00019577,2]
[360050220,1746521432046,-200.0,0.000196,2]
[360050221,1746521432057,-541.05619578,0.00019728,2]
[360050222,1746521432069,-1837.83243733,0.00019733,2]
[360050223,1746521432082,-5939.38113629,0.00019733,2]
[360050224,1746521432123,-2219.999976,0.00019733,2]
[360050225,1746521432137,-5709.9774238,0.00019733,2]
[360050226,1746521432179,-573.25082544,0.00019733,2]
[360050227,1746521432195,-295.82024628,0.00019733,2]
[360050228,1746521432233,-1815.3649273,0.00019733,2]
[360050230,1746521432341,-6129.07664241,0.00019733,2]
[360050232,1746521432352,-342.32816862,0.00019741,2]
[360050357,1746521438152,-1331.4071871,0.00019741,2]
[360050358,1746521438165,-9109.19923093,0.00019741,2]
[360050359,1746521438176,-276.66902567,0.0001975,2]
[360050360,1746521438187,-12997.03483396,0.00019764,2]
[360050378,1746521440193,-614.704,0.00019764,2]
[360050379,1746521440456,-9429.67100035,0.00019764,2]
[360050380,1746521440469,-996.92586435,0.00019764,2]
[360050389,1746521443031,-326.60094923,0.00019764,2]
[360050390,1746521443189,-626.93228523,0.00019764,2]
[360050391,1746521443200,-348.25,0.00019764,2]
[360050392,1746521443211,-2441.93467861,0.00019764,2]
[360050393,1746521443296,-1567.17304762,0.00019764,2]
[360050419,1746521445927,-659.86705211,0.00019764,2]
[360050420,1746521445939,-456.5566777,0.00019764,2]
[360050421,1746521445980,-610.02658509,0.00019764,2]
[360050422,1746521446073,-476.64562243,0.00019764,2]
[360050423,1746521446082,-1579.42944352,0.00019769,2]
[360050424,1746521446190,-21103.441734,0.00019769,2]
[360050425,1746521446199,-2596.98536023,0.00019773,2]
[360050426,1746521446211,-2469.25138711,0.00019773,2]
[360050427,1746521446223,-3089.25919786,0.00019773,2]
[360050428,1746521446244,-599.38775637,0.00019773,2]
[360050429,1746521446300,-13886.31433615,0.00019773,2]
[360050430,1746521461205,2608.14,0.00018919,2]
[360050434,1746521566081,1000.0,0.00018915,2]
[360050436,1746521580119,230.0,0.0003,30]
[360050438,1746521659985,2027.98,0.00018915,2]
[360050439,1746521699284,-200.0,0.000196,2]
[360050440,1746521748714,150.0,0.0003,30]
[360050443,1746521919451,43742.41867831,0.0003,120]
[360050444,1746521942699,608.83,0.00016986,2]
[360050445,1746521942912,608.83,0.0001925,2]
[360050446,1746521951605,-416.63234,0.00019567,2]
[360050447,1746522004068,416.63234,0.00019469,2]
[360050448,1746522077145,22526.98,0.00018896,2]
[360050449,1746522080236,-276.95342661,0.00019502,2]
[360050450,1746522083909,-165.22,0.00019502,2]
[360050451,1746522090219,-204.431196,0.00019502,2]
[360050452,1746522092122,-282.8438483,0.00019502,2]
[360050453,1746522095597,-157.70735956,0.00019502,2]
[360050454,1746522098305,-300.26,0.00019502,2]
[360050455,1746522104672,-163.9893418,0.00019502,2]
[360050456,1746522110868,-176.51281845,0.00019502,2]
[360050457,1746522114337,-156.74979693,0.00019502,2]
[360050458,1746522121128,-281.01881758,0.00019502,2]
[360050459,1746522127097,-193.50316977,0.00019502,2]
[360050460,1746522135983,636.87,0.000189,2]
[360050461,1746522155896,-171.40940879,0.00019502,2]
[360050462,1746522171501,197.61246239,0.000195,2]
[360050463,1746522297917,500.0,0.00029589,30]
[360050464,1746522298157,500.0,0.00029863,35]
[360050465,1746522334602,1000.0,0.0003,30]
[360050466,1746522343746,-33.02178721,0.00019502,2]
[360050467,1746522372758,3000.0,0.0003,30]
[360050475,1746522409792,182.18,0.0001891,2]
[360050476,1746522412635,158.5213762,0.000195,2]
[360050477,1746522518665,262.6,0.00030136,120]
[360050479,1746522550346,1000.0,0.00018903,2]
[360050480,1746522566964,250.0,0.00017,2]
[360050481,1746522568091,300.0,0.00019,2]
[360050482,1746522632416,-200.0,0.000196,2]
[360050483,1746522632426,-199.31543314,0.00019672,2]
[360050484,1746522632439,-199.31543314,0.0001969,2]
[360050485,1746522632449,-485.49409635,0.00019718,2]
[360050557,1746522638234,-567.34467403,0.000196,2]
[360050558,1746522638245,-260.352589,0.000196,2]
[360050559,1746522638255,-2899.92855331,0.00019718,2]
[360050560,1746522638263,-3385.42264966,0.00019723,2]
[360050561,1746522638273,-723.27703957,0.00019724,2]
[360050562,1746522638282,-207.4,0.00019761,2]
[360050563,1746522638291,-300.0,0.00019772,2]
[360050564,1746522638300,-1200.0,0.00019772,2]
[360050565,1746522638309,-300.0,0.00019772,2]
[360050566,1746522638318,-1457.3328494,0.00019773,2]
[360050567,1746522638333,-1281.71678026,0.00019773,2]
[360050568,1746522638344,-1921.69406801,0.00019773,2]
[360050585,1746522640221,-41929.38077263,0.00019773,2]
[360050586,1746522640231,-2538.06110667,0.00019773,2]
[360050587,1746522640241,-245.26147858,0.00019773,2]
[360050588,1746522640250,-72392.72177019,0.00019773,2]
[360050589,1746522640260,-2227.74494779,0.00019775,2]
[360050590,1746522640269,-994.55200122,0.00019782,2]
[360050591,1746522640279,-2227.74494779,0.00019784,2]
[360050592,1746522640288,-994.55200123,0.0001979,2]
[360050593,1746522640297,-86015.86334754,0.0001979,2]
[360050594,1746522640481,-477.05629262,0.0001979,2]
[360050595,1746522640673,-1096.95,0.0001979,2]
[360050612,1746522646042,-2030.44888533,0.0001979,2]
[360050613,1746522646051,-163.50765239,0.0001979,2]
[360050614,1746522646061,-5991.37785955,0.0001979,2]
[360050615,1746522646150,-1452.6723082,0.0001979,2]
[360050616,1746522646159,-174.86081031,0.00019798,2]
[360050617,1746522646168,-2894.01390844,0.000198,2]
[360050618,1746522646359,-809.51849156,0.000198,2]
[360050619,1746522646369,-539.4871,0.000198,2]
[360050620,1746522646378,-12057.54499283,0.000198,2]
[360050621,1746522646387,-1716.95217326,0.00019855,2]
[360050622,1746522646396,-1716.95217321,0.0001986,2]
[360050623,1746522646405,-1716.95217321,0.00019865,2]
[360050624,1746522646414,-14412.4617281,0.0001987,2]
[360050625,1746522646426,-21981.56225342,0.0001987,2]
[360050626,1746522646435,-1716.95217321,0.0001987,2]
[360050627,1746522646443,-151.0,0.00019871,2]
[360050628,1746522646452,-151.0,0.00019871,2]
[360050629,1746522646461,-668.65185757,0.00019871,2]
[360050630,1746522646470,-243.13,0.00019872,2]
[360050631,1746522646479,-500.76903656,0.00019873,2]
[360050632,1746522646488,-501.87724418,0.00019873,2]
[360050633,1746522646497,-608.63623187,0.00019873,2]
[360050634,1746522646506,-500.78506939,0.00019873,2]
[360050635,1746522646515,-500.0,0.00019873,2]
[360050636,1746522646524,-1716.95217321,0.00019875,2]
[360050637,1746522646534,-631.03808419,0.00019877,2]
[360050638,1746522646543,-321.18454016,0.00019878,2]
[360050639,1746522646552,-5000.0,0.00019878,2]
[360050641,1746522646711,-991.8587,0.0001988,2]
[360050642,1746522646721,-4553.7181,0.0001988,2]
[360050643,1746522646730,-1716.95217321,0.0001988,2]
[360050644,1746522646740,-321.18454013,0.0001988,2]
[360050645,1746522646749,-161.28165706,0.00019881,2]
[360050646,1746522646758,-311.69836215,0.00019881,2]
[360050647,1746522646767,-517.06655732,0.00019881,2]
[360050648,1746522646776,-454.84150195,0.00019881,2]
[360050649,1746522646785,-450.0,0.00019881,2]
[360050650,1746522646795,-379.57941728,0.00019881,2]
[360050651,1746522646804,-755496.02499909,0.00019882,2]
[360050652,1746522646814,-3310.85737618,0.00019882,2]
[360050653,1746522646823,-3310.85737618,0.00019882,2]
[360050654,1746522646832,-3310.85737618,0.00019882,2]
[360050655,1746522646842,-3310.85737618,0.00019882,2]
[360050656,1746522646851,-3310.85737618,0.00019882,2]
[360050657,1746522646860,-3310.85737618,0.00019882,2]
[360050658,1746522646869,-3310.85737618,0.00019882,2]
[360050659,1746522646878,-3310.85737618,0.00019882,2]
[360050660,1746522646887,-3310.85737618,0.00019882,2]
[360050661,1746522646895,-3310.85737618,0.00019882,2]
[360050662,1746522646904,-3310.85737618,0.00019882,2]
[360050663,1746522646914,-3310.85737618,0.00019882,2]
[360050664,1746522646922,-3310.85737618,0.00019882,2]
[360050665,1746522646932,-3310.85737618,0.00019882,2]
[360050666,1746522646941,-3310.85737618,0.00019882,2]
[360050667,1746522646950,-3310.85737618,0.00019882,2]
[360050668,1746522646959,-3310.85737618,0.00019882,2]
[360050669,1746522646968,-3310.85737618,0.00019882,2]
[360050670,1746522646977,-3310.85737618,0.00019882,2]
[360050671,1746522646986,-3310.85737618,0.00019882,2]
[360050672,1746522646995,-3310.85737618,0.00019882,2]
[360050673,1746522647004,-3310.85737618,0.00019882,2]
[360050674,1746522647013,-3310.85737618,0.00019882,2]
[360050675,1746522647023,-3310.85737618,0.00019882,2]
[360050676,1746522647032,-3310.85737618,0.00019882,2]
[360050677,1746522647041,-3310.85737618,0.00019882,2]
[360050678,1746522647050,-3310.85737618,0.00019882,2]
[360050679,1746522647060,-3310.85737618,0.00019882,2]
[360050680,1746522647069,-3310.85737618,0.00019882,2]
[360050681,1746522647078,-3310.85737618,0.00019882,2]
[360050682,1746522647087,-3310.85737618,0.00019882,2]
[360050683,1746522647096,-3310.85737618,0.00019882,2]
[360050684,1746522647107,-3310.85737618,0.00019882,2]
[360050685,1746522647117,-3310.85737618,0.00019882,2]
[360050686,1746522647126,-3310.85737618,0.00019882,2]
[360050687,1746522647135,-3310.85737618,0.00019882,2]
[360050688,1746522647144,-3310.85737618,0.00019882,2]
[360050689,1746522647153,-3310.85737618,0.00019882,2]
[360050690,1746522647162,-3310.85737618,0.00019882,2]
[360050691,1746522647171,-3310.85737618,0.00019882,2]
[360050692,1746522647180,-3310.85737618,0.00019882,2]
[360050693,1746522647188,-3310.85737618,0.00019882,2]
[360050694,1746522647198,-3310.85737618,0.00019882,2]
[360050695,1746522647207,-3310.85737618,0.00019882,2]
[360050696,1746522647217,-3310.85737618,0.00019882,2]
[360050697,1746522647227,-3310.85737618,0.00019882,2]
[360050698,1746522647236,-3310.85737618,0.00019882,2]
[360050699,1746522647245,-3310.85737618,0.00019882,2]
[360050700,1746522647254,-3285.38924252,0.00019882,2]
[360050701,1746522647263,-3285.38924252,0.00019882,2]
[360050702,1746522647272,-3285.38924252,0.00019882,2]
[360050703,1746522647281,-3285.38924252,0.00019882,2]
[360050704,1746522647290,-3285.38924252,0.00019882,2]
[360050705,1746522647299,-3285.38924252,0.00019882,2]
[360050706,1746522647309,-3285.38924252,0.00019882,2]
[360050707,1746522647319,-3285.38924252,0.00019882,2]
[360050708,1746522647328,-3285.38924252,0.00019882,2]
[360050709,1746522647337,-3285.38924252,0.00019882,2]
[360050710,1746522647346,-3285.38924252,0.00019882,2]
[360050711,1746522647355,-3285.38924252,0.00019882,2]
[360050712,1746522647363,-3285.38924252,0.00019882,2]
[360050713,1746522647373,-3285.38924252,0.00019882,2]
[360050714,1746522647382,-3285.38924252,0.00019882,2]
[360050715,1746522647393,-3285.38924252,0.00019882,2]
[360050716,1746522647402,-3285.38924252,0.00019882,2]
[360050717,1746522647410,-3285.38924252,0.00019882,2]
[360050718,1746522647419,-3285.38924252,0.00019882,2]
[360050719,1746522647429,-3285.38924252,0.00019882,2]
[360050720,1746522647437,-3285.38924252,0.00019882,2]
[360050721,1746522647447,-3285.38924252,0.00019882,2]
[360050722,1746522647456,-3285.38924252,0.00019882,2]
[360050723,1746522647464,-3285.38924252,0.00019882,2]
[360050724,1746522647474,-3285.38924252,0.00019882,2]
[360050725,1746522647483,-3285.38924252,0.00019882,2]
[360050726,1746522647492,-3285.38924252,0.00019882,2]
[360050727,1746522647501,-3285.38924252,0.00019882,2]
[360050728,1746522647510,-3285.38924252,0.00019882,2]
[360050729,1746522647519,-3285.38924252,0.00019882,2]
[360050730,1746522647528,-3285.38924252,0.00019882,2]
[360050731,1746522647537,-500.0,0.00019882,2]
[360050732,1746522647547,-500.0,0.00019882,2]
[360050733,1746522647556,-500.0,0.00019882,2]
[360050734,1746522647565,-240.0,0.00019882,2]
[360050735,1746522647574,-500.0,0.00019882,2]
[360050736,1746522647583,-500.0,0.00019882,2]
[360050737,1746522647593,-500.0,0.00019882,2]
[360050738,1746522647602,-3390.14572988,0.00019882,2]
[360050739,1746522647611,-3390.14572988,0.00019882,2]
[360050740,1746522647621,-3390.14572988,0.00019882,2]
[360050741,1746522647630,-3390.14572988,0.00019882,2]
[360050742,1746522647639,-3390.14572988,0.00019882,2]
[360050743,1746522647648,-3390.14572988,0.00019882,2]
[360050744,1746522647658,-3390.14572988,0.00019882,2]
[360050745,1746522647667,-3390.14572988,0.00019882,2]
[360050746,1746522647676,-3390.14572988,0.00019882,2]
[360050747,1746522647686,-2260.046,0.00019882,2]
[360050748,1746522647695,-2278.8221,0.00019882,2]
[360050749,1746522647704,-321.18454013,0.00019883,2]
[360050750,1746522647713,-1716.95217321,0.00019885,2]
[360050751,1746522647722,-321.18454013,0.00019885,2]
[360050752,1746522647732,-161.28165706,0.00019887,2]
[360050753,1746522647742,-321.18454013,0.00019888,2]
[360050754,1746522647752,-1716.95217321,0.0001989,2]
[360050755,1746522647761,-321.18454013,0.0001989,2]
[360050756,1746522647771,-321.18454013,0.00019893,2]
[360050757,1746522647780,-161.28165706,0.00019894,2]
[360050758,1746522647789,-1716.95217321,0.00019895,2]
[360050759,1746522647798,-321.18454013,0.00019895,2]
[360050760,1746522647808,-321.18454013,0.00019898,2]
[360050761,1746522647817,-282.57682101,0.00019898,2]
[360050762,1746522647826,-249.57155509,0.00019899,2]
[360050763,1746522647835,-473.215,0.000199,2]
[360050764,1746522647844,-975.29,0.000199,5]
[360050765,1746522647854,-500.0,0.000199,2]
[360050766,1746522647863,-500.0,0.000199,2]
[360050767,1746522647872,-191.08241789,0.000199,2]
[360050768,1746522647881,-695.0,0.000199,2]
[360050769,1746522647890,-150.0,0.000199,2]
[360050770,1746522647899,-150.0,0.000199,2]
[360050771,1746522647908,-500.0,0.000199,2]
[360050772,1746522647918,-150.0,0.000199,2]
[360050773,1746522647927,-150.0,0.000199,2]
[360050774,1746522647936,-500.0,0.000199,2]
[360050775,1746522647945,-150.0,0.000199,2]
[360050776,1746522647955,-249.8326312,0.000199,2]
[360050777,1746522647964,-161.28165706,0.000199,2]
[360050778,1746522647973,-1716.95217321,0.000199,2]
[360050779,1746522647982,-150.0,0.000199,2]
[360050780,1746522647991,-500.0,0.000199,2]
[360050781,1746522648001,-150.0,0.000199,2]
[360050782,1746522648011,-150.0,0.000199,2]
[360050783,1746522648020,-1831.53850984,0.000199,2]
[360050784,1746522648030,-949.9513392,0.000199,2]
[360050785,1746522648040,-321.18454013,0.000199,2]
[360050786,1746522648049,-792.037,0.00019924,2]
[360050787,1746522648058,-332.21487799,0.00019926,2]
[360050788,1746522648068,-187.82673636,0.00019926,2]
[360050789,1746522648077,-187.19541273,0.00019926,2]
[360050790,1746522648087,-232.97416415,0.00019926,2]
[360050791,1746522648096,-500.0,0.00019926,2]
[360050792,1746522648105,-162.18521137,0.00019926,2]
[360050793,1746522648117,-500.0,0.00019926,2]
[360050794,1746522648126,-500.0,0.00019926,2]
[360050795,1746522648135,-500.0,0.00019926,2]
[360050796,1746522648144,-500.0,0.00019926,2]
[360050797,1746522648155,-244.54532983,0.00019926,2]
[360050798,1746522648164,-500.0,0.00019926,2]
[360050799,1746522648174,-500.0,0.00019926,2]
[360050800,1746522648184,-500.0,0.00019926,2]
[360050801,1746522648193,-6764.0,0.00019927,2]
[360050802,1746522648203,-153.0,0.00019927,2]
[360050803,1746522648212,-4015.0,0.00019927,2]
[360050804,1746522648221,-878.0,0.00019927,2]
[360050805,1746522648230,-500.0,0.00019927,2]
[360050806,1746522648239,-695.0,0.00019927,2]
[360050807,1746522648249,-500.0,0.00019927,2]
[360050808,1746522648259,-150.0,0.00019927,2]
[360050809,1746522648268,-500.0,0.00019927,2]
[360050810,1746522648277,-250.50317372,0.00019927,2]
[360050811,1746522648286,-150.0,0.00019927,2]
[360050812,1746522648295,-500.0,0.00019927,2]
[360050813,1746522648305,-150.0,0.00019927,2]
[360050814,1746522648314,-500.0,0.00019955,2]
[360050815,1746522648324,-695.0,0.00019955,2]
[360050816,1746522648333,-500.0,0.00019955,2]
[360050817,1746522648343,-500.0,0.00019955,2]
[360050818,1746522648353,-150.0,0.00019955,2]
[360050819,1746522648363,-500.0,0.00019955,2]
[360050820,1746522648373,-450.0,0.0001997,2]
[360050821,1746522648382,-168.10925657,0.0001997,2]
[360050822,1746522648392,-450.70400226,0.0001997,2]
[360050823,1746522648402,-156.645262,0.0001997,2]
[360050824,1746522648412,-156.645262,0.0001997,2]
[360050825,1746522648421,-161.813897,0.0001997,2]
[360050826,1746522648430,-343.02205388,0.0001997,2]
[360050827,1746522648440,-450.0,0.0001997,2]
[360050828,1746522648449,-515.54,0.0001997,2]
[360050829,1746522648458,-361.60886748,0.0001997,2]
[360050830,1746522648468,-462.66,0.0001997,2]
[360050831,1746522648477,-450.0,0.0001997,2]
[360050832,1746522648486,-450.0,0.0001997,2]
[360050833,1746522648496,-450.0,0.0001997,2]
[360050834,1746522648506,-450.0,0.0001997,2]
[360050835,1746522648515,-450.0,0.0001997,2]
[360050836,1746522648525,-450.0,0.0001997,2]
[360050837,1746522648535,-450.0,0.0001997,2]
[360050838,1746522648545,-450.0,0.0001997,2]
[360050839,1746522648556,-450.0,0.0001997,2]
[360050840,1746522648567,-450.0,0.0001997,2]
[360050841,1746522648577,-500.0,0.0001997,2]
[360050842,1746522648588,-500.0,0.0001997,2]
[360050843,1746522648600,-450.0,0.0001997,2]
[360050844,1746522648610,-450.0,0.0001997,2]
[360050845,1746522648620,-450.0,0.0001997,2]
[360050846,1746522648629,-450.0,0.0001997,2]
[360050847,1746522648639,-450.0,0.0001997,2]
[360050848,1746522648649,-450.0,0.0001997,2]
[360050849,1746522648659,-450.0,0.0001997,2]
[360050850,1746522648669,-473.66726278,0.0001997,2]
[360050851,1746522648679,-450.0,0.0001997,2]
[360050852,1746522648689,-450.0,0.0001997,2]
[360050853,1746522648700,-548.20085044,0.0001997,2]
[360050854,1746522648710,-450.0,0.0001997,2]
[360050855,1746522648720,-450.0,0.0001997,2]
[360050856,1746522648730,-450.0,0.0001997,2]
[360050857,1746522648740,-450.0,0.0001997,2]
[360050858,1746522648751,-450.0,0.0001997,2]
[360050859,1746522648760,-450.0,0.0001997,2]
[360050860,1746522648769,-450.0,0.0001997,2]
[360050861,1746522648779,-450.0,0.0001997,2]
[360050862,1746522648789,-450.0,0.0001997,2]
[360050863,1746522648799,-450.0,0.0001997,2]
[360050864,1746522648808,-450.0,0.0001997,2]
[360050865,1746522648818,-450.0,0.0001997,2]
[360050866,1746522648827,-522.12714898,0.0001997,2]
[360050867,1746522648839,-450.0,0.0001997,2]
[360050868,1746522648849,-450.0,0.0001997,2]
[360050869,1746522648859,-450.0,0.0001997,2]
[360050870,1746522648869,-450.0,0.0001997,2]
[360050871,1746522648878,-382.72520621,0.0001997,2]
[360050872,1746522648888,-398.29121323,0.0001997,2]
[360050873,1746522648898,-450.0,0.00019971,2]
[360050874,1746522648907,-491.2152973,0.00019971,2]
[360050875,1746522648917,-450.0,0.00019971,2]
[360050876,1746522648927,-450.0,0.00019971,2]
[360050877,1746522648936,-450.0,0.00019971,2]
[360050878,1746522648946,-525.49198975,0.00019971,2]
[360050879,1746522648956,-546.00370887,0.00019971,2]
[360050880,1746522648966,-241.23833223,0.00019971,2]
[360050881,1746522648975,-450.0,0.00019971,2]
[360050882,1746522648985,-450.0,0.00019971,2]
[360050883,1746522648994,-450.0,0.00019971,2]
[360050884,1746522649005,-450.0,0.00019971,2]
[360050885,1746522649015,-4245.44,0.00019971,2]
[360050886,1746522649024,-450.0,0.00019971,2]
[360050887,1746522649035,-500.0,0.00019973,2]
[360050888,1746522649045,-167.36233526,0.00019973,2]
[360050889,1746522649055,-500.0,0.00019973,2]
[360050890,1746522649064,-500.0,0.00019973,2]
[360050891,1746522649073,-500.0,0.00019973,2]
[360050892,1746522649083,-317.65310063,0.00019973,2]
[360050893,1746522649093,-167.22403565,0.00019973,2]
[360050894,1746522649103,-500.0,0.00019973,2]
[360050895,1746522649115,-500.96496813,0.00019973,2]
[360050896,1746522649124,-161.63188991,0.00019973,2]
[360050897,1746522649133,-500.0,0.00019973,2]
[360050898,1746522649143,-182.425903,0.00019973,2]
[360050899,1746522649152,-150.0,0.00019973,2]
[360050900,1746522649162,-450.0,0.00019976,2]
[360050901,1746522649174,-450.0,0.00019976,2]
[360050902,1746522649183,-450.0,0.00019976,2]
[360050903,1746522649193,-450.0,0.00019976,2]
[360050904,1746522649203,-450.0,0.00019976,2]
[360050905,1746522649212,-450.0,0.00019976,2]
[360050906,1746522649222,-513.96807718,0.00019976,2]
[360050907,1746522649231,-450.0,0.00019976,2]
[360050908,1746522649241,-450.0,0.00019976,2]
[360050909,1746522649251,-450.0,0.00019976,2]
[360050910,1746522649260,-450.0,0.00019976,2]
[360050911,1746522649270,-450.0,0.00019976,2]
[360050912,1746522649280,-450.0,0.00019976,2]
[360050913,1746522649290,-450.0,0.00019976,2]
[360050914,1746522649299,-450.0,0.00019976,2]
[360050915,1746522649309,-450.0,0.00019976,2]
[360050916,1746522649319,-450.0,0.00019976,2]
[360050917,1746522649328,-450.0,0.00019976,2]
[360050918,1746522649338,-450.0,0.00019976,2]
[360050919,1746522649347,-450.0,0.00019976,2]
[360050920,1746522649357,-450.0,0.00019976,2]
[360050921,1746522649367,-450.0,0.00019976,2]
[360050922,1746522649376,-450.0,0.00019976,2]
[360050923,1746522649386,-450.0,0.00019976,2]
[360050924,1746522649396,-505.09530994,0.00019976,2]
[360050925,1746522649405,-525.4996839,0.00019976,2]
[360050926,1746522649537,-450.0,0.00019976,2]
[360050927,1746522649546,-450.0,0.00019976,2]
[360050928,1746522649556,-450.0,0.00019976,2]
[360050929,1746522649566,-450.0,0.00019976,2]
[360050930,1746522649576,-450.0,0.00019976,2]
[360050931,1746522649585,-467.57781156,0.00019976,2]
[360050932,1746522649595,-450.0,0.00019976,2]
[360050933,1746522649605,-450.0,0.00019976,2]
[360050934,1746522649614,-450.0,0.00019976,2]
[360050935,1746522649624,-450.0,0.00019976,2]
[360050936,1746522649633,-550.82582998,0.00019976,2]
[360050937,1746522649643,-450.0,0.00019976,2]
[360050938,1746522649652,-450.0,0.00019976,2]
[360050939,1746522649662,-450.0,0.00019976,2]
[360050940,1746522649671,-166.970361,0.00019976,2]
[360050941,1746522649680,-450.0,0.00019976,2]
[360050942,1746522649690,-450.0,0.00019976,2]
[360050943,1746522649700,-407.00296368,0.00019977,2]
[360050944,1746522649709,-471.13967157,0.00019977,2]
[360050945,1746522649719,-450.0,0.00019977,2]
[360050946,1746522649729,-479.18915856,0.00019977,2]
[360050947,1746522649738,-481.18583127,0.00019977,2]
[360050948,1746522649748,-564.8944427,0.00019977,2]
[360050949,1746522649758,-469.52014337,0.00019977,2]
[360050950,1746522649768,-491.77311886,0.00019977,2]
[360050951,1746522649778,-463.36336205,0.00019977,2]
[360050952,1746522649787,-226.47109544,0.00019977,2]
[360050953,1746522649797,-462.81706419,0.00019977,2]
[360050954,1746522649806,-306.72213793,0.00019977,2]
[360050955,1746522649816,-465.22925151,0.00019977,2]
[360050956,1746522649825,-469.83629641,0.00019977,2]
[360050957,1746522649835,-451.93195398,0.00019977,2]
[360050958,1746522649844,-450.0,0.00019977,2]